bitfinex-derivatives/quotes_BTCF0:USTF0_20240820
["timestamp","ask_amount","ask_price","bid_price","bid_amount"]
[1724135481919,0.06536754,61102.0,61099.0,0.12676819]
[1724135482121,0.06536754,61102.0,61101.0,0.06535117]
[1724135482426,0.08149461,61106.0,61101.0,0.06535117]
[1724135482427,0.08149461,61106.0,61103.0,0.081775]
[1724135482631,0.0463,61108.0,61105.0,0.4739]
[1724135482831,0.08172313,61106.0,61105.0,0.4739]
[1724135483524,0.0265052,61107.0,61105.0,0.4739]
[1724135483724,0.0463,61108.0,61105.0,0.4739]
[1724135483725,0.02650503,61106.0,61105.0,0.4739]
[1724135484029,0.08174208,61106.0,61105.0,0.4739]
[1724135484423,0.02650526,61106.0,61105.0,0.1131]
[1724135484618,0.02650526,61107.0,61105.0,0.1131]
[1724135484823,0.02650526,61106.0,61105.0,0.1131]
[1724135485018,0.02650526,61107.0,61105.0,0.556672]
[1724135485229,0.1131,61106.0,61105.0,0.001]
[1724135485529,0.13960526,61106.0,61105.0,0.001]
[1724135485733,0.63056526,61106.0,61105.0,0.001]
[1724135487227,0.51746526,61106.0,61105.0,0.195873]
[1724135488326,0.51746526,61106.0,61105.0,0.082773]
[1724135488522,0.02650526,61106.0,61105.0,0.082773]
[1724135488727,0.02650526,61107.0,61105.0,0.082773]
[1724135489029,0.02650526,61106.0,61105.0,0.082773]
[1724135489332,0.0265075,61106.0,61105.0,0.001]
[1724135489535,0.241169,61108.0,61106.0,0.081772]
[1724135489736,0.02650763,61107.0,61106.0,0.081772]
[1724135490129,0.51746763,61107.0,61106.0,0.081772]
[1724135491326,0.61550882,61107.0,61106.0,0.081772]
[1724135491532,0.12454882,61107.0,61106.0,0.082772]
[1724135492031,0.61550882,61107.0,61106.0,0.09316276]
[1724135492334,0.12454882,61107.0,61106.0,0.09316276]
[1724135492533,0.61550882,61107.0,61106.0,0.09316276]
[1724135492734,0.12454882,61107.0,61106.0,0.09316276]
[1724135492942,0.02650648,61107.0,61106.0,0.09316276]
[1724135494340,0.63056648,61107.0,61106.0,0.082772]
[1724135494545,0.22137648,61107.0,61106.0,0.001]
[1724135495037,0.02650648,61107.0,61106.0,0.556672]
[1724135495237,0.3608,61115.0,61106.0,0.556672]
[1724135495238,0.0980638,61110.0,61106.0,0.556672]
[1724135495442,0.0980638,61112.0,61111.0,0.081765]
[1724135495743,0.0980638,61114.0,61113.0,0.081762]
[1724135496042,0.0980638,61115.0,61114.0,0.081761]
[1724135496239,0.02650269,61115.0,61114.0,0.081761]
[1724135496837,0.0980638,61116.0,61114.0,0.081761]
[1724135497136,0.12456649,61117.0,61115.0,0.08176]
[1724135497334,0.2260198,61118.0,61116.0,0.3608]
[1724135497639,0.2213594,61117.0,61116.0,0.3608]
[1724135498642,0.1082594,61117.0,61116.0,0.3608]
[1724135498949,0.09798905,61121.0,61120.0,0.081753]
[1724135499135,0.02650092,61121.0,61120.0,0.1131]
[1724135499536,0.09798905,61124.0,61123.0,0.081749]
[1724135499736,0.12448893,61124.0,61123.0,0.081749]
[1724135499936,0.02649988,61124.0,61123.0,0.081749]
[1724135500143,1.01524189,61124.0,61118.0,0.081754]
[1724135500332,0.081754,61119.0,61118.0,0.081754]
[1724135500532,0.20620292,61119.0,61117.0,0.00024554]
[1724135500732,0.77428892,61118.0,61117.0,0.00024554]
[1724135501147,1.25604392,61118.0,61117.0,0.00024554]
[1724135501337,1.15809488,61118.0,61117.0,0.00024554]
[1724135501535,0.081764,61112.0,61103.0,0.1131]
[1724135501734,0.06529523,61106.0,61101.0,0.3608]
[1724135501940,0.06529523,61106.0,61105.0,0.081773]
[1724135502143,0.06529523,61108.0,61107.0,0.08177]
[1724135502343,0.06529523,61108.0,61107.0,0.44257]
[1724135502647,0.3608,61114.0,61111.0,0.081765]
[1724135502648,0.08161904,61112.0,61111.0,0.081765]
[1724135504848,0.08161904,61112.0,61101.0,0.01424554]
[1724135504849,1.360125,61112.0,61101.0,0.01424554]
[1724135505039,0.38064285,61103.0,61094.0,0.3608]
[1724135505246,0.38064285,61103.0,61084.0,0.22293348]
[1724135505247,0.081786,61095.0,61091.0,0.0103208]
[1724135505444,0.06529077,61092.0,61091.0,0.081792]
[1724135505639,0.0816283,61095.0,61089.0,0.37100876]
[1724135505847,0.06529254,61091.0,61090.0,0.081793]
[1724135506350,0.06529254,61092.0,61091.0,0.081792]
[1724135506537,0.06529254,61094.0,61091.0,0.364492]
[1724135506740,0.00024554,61097.0,61091.0,0.364492]
[1724135506741,0.00024554,61097.0,61096.0,0.081785]
[1724135506937,0.00024554,61097.0,61096.0,0.442585]
[1724135507452,0.00024554,61097.0,61096.0,0.081785]
[1724135508350,0.00524554,61097.0,61096.0,0.093785]
[1724135509542,0.00524554,61097.0,61096.0,0.10432044]
[1724135510438,0.00524554,61097.0,61096.0,0.093785]
[1724135510846,0.0704834,61097.0,61096.0,0.093785]
[1724135511346,0.00524554,61097.0,61096.0,0.093785]
[1724135512039,0.07047571,61097.0,61096.0,0.093785]
[1724135512646,0.07047322,61097.0,61096.0,0.093785]
[1724135512952,0.00524554,61097.0,61096.0,0.454585]
[1724135516551,0.09794285,61112.0,61096.0,0.454585]
[1724135516552,0.06522768,61108.0,61096.0,1.14654]
[1724135516756,0.06522768,61107.0,61105.0,0.081773]
[1724135517255,0.06522768,61108.0,61105.0,0.081773]
[1724135517454,0.06522768,61108.0,61106.0,0.081771]
[1724135518452,0.005,61107.0,61106.0,0.081771]
[1724135518754,0.005,61107.0,61106.0,0.442571]
[1724135518955,0.005,61107.0,61106.0,0.453571]
[1724135520048,0.001,61108.0,61107.0,0.08177]
[1724135520850,0.06522768,61110.0,61109.0,0.081768]
[1724135521449,0.06522768,61111.0,61110.0,0.081766]
[1724135522859,0.06547321,61113.0,61111.0,0.081765]
[1724135523064,0.00024553,61113.0,61111.0,0.442565]
[1724135523359,0.00024553,61113.0,61112.0,0.081764]
[1724135524558,0.00124553,61113.0,61112.0,0.082764]
[1724135525757,0.00124553,61113.0,61112.0,0.087764]
[1724135526558,0.00124553,61113.0,61112.0,0.006]
[1724135528146,0.00124553,61113.0,61112.0,0.087764]
[1724135529260,0.00124553,61113.0,61112.0,0.133464]
[1724135529556,0.00124553,61113.0,61112.0,0.087764]
[1724135541764,0.00124553,61113.0,61112.0,0.448564]
[1724135542160,0.00124553,61113.0,61112.0,0.008564]
[1724135542562,0.00124553,61113.0,61112.0,0.090328]
[1724135544363,0.00124553,61113.0,61112.0,0.13914185]
[1724135544969,0.00124553,61113.0,61112.0,0.090328]
[1724135546377,0.00124553,61113.0,61112.0,0.13914185]
[1724135546577,0.00124553,61113.0,61112.0,0.090328]
[1724135548378,0.06647321,61113.0,61112.0,0.090328]
[1724135549481,0.00124553,61113.0,61112.0,0.090328]
[1724135549775,0.06660183,61113.0,61112.0,0.090328]
[1724135550571,0.06660183,61113.0,61112.0,0.203428]
[1724135552682,0.00124553,61113.0,61112.0,0.203428]
[1724135553788,0.00124553,61113.0,61112.0,0.090328]
[1724135555889,0.00124553,61113.0,61112.0,0.081764]
[1724135557181,0.11434553,61113.0,61112.0,0.081764]
[1724135557388,0.14084636,61113.0,61112.0,0.081764]
[1724135557589,0.18764636,61113.0,61112.0,0.081764]
[1724135557976,0.18764636,61113.0,61112.0,0.13075082]
[1724135560084,0.07454636,61113.0,61112.0,0.24385082]
[1724135560393,0.08297097,61113.0,61112.0,0.194864]
[1724135564596,0.00124553,61113.0,61112.0,0.194864]
[1724135565091,0.08297097,61113.0,61112.0,0.194864]
[1724135565297,0.08297097,61113.0,61112.0,0.24385183]
[1724135565993,0.08297097,61113.0,61112.0,0.194864]
[1724135567099,0.08297097,61113.0,61112.0,0.24385183]
[1724135569501,0.00124553,61113.0,61112.0,0.194864]
[1724135573204,0.06660781,61113.0,61112.0,0.26021517]
[1724135573399,0.00124553,61113.0,61112.0,0.26015793]
[1724135573698,0.00124553,61113.0,61112.0,0.194864]
[1724135577001,0.00124553,61113.0,61112.0,0.26015222]
[1724135577302,0.00124553,61113.0,61112.0,0.194864]
[1724135577499,0.00124553,61113.0,61112.0,0.26015188]
[1724135578389,0.00124553,61113.0,61112.0,0.194864]
[1724135578993,0.00124553,61113.0,61112.0,0.276628]
[1724135579196,0.06536228,61115.0,61114.0,0.163522]
[1724135579496,1e-08,61118.0,61112.0,0.688064]
[1724135579691,1e-08,61118.0,61117.0,0.17836889]
[1724135580300,1e-08,61118.0,61117.0,0.34188289]
[1724135581405,0.3608,61121.0,61120.0,0.081753]
[1724135581696,0.3608,61121.0,61120.0,0.24379628]
[1724135581904,0.3608,61121.0,61120.0,0.194853]
[1724135582403,0.08172544,61124.0,61123.0,0.081749]
[1724135582597,0.08172544,61125.0,61124.0,0.081747]
[1724135582790,0.08172544,61125.0,61124.0,0.194847]
[1724135584201,0.08172544,61125.0,61124.0,0.195847]
[1724135585803,0.08172544,61125.0,61124.0,0.199847]
[1724135589300,0.08172544,61127.0,61124.0,0.086747]
[1724135589603,1.046446,61126.0,61124.0,0.005]
[1724135589809,0.02649786,61125.0,61124.0,0.005]
[1724135590100,0.59904386,61125.0,61124.0,0.005]
[1724135590312,0.59904386,61125.0,61114.0,19.64764554]
[1724135590313,0.08176,61115.0,61114.0,19.64764554]
[1724135590498,0.58215786,61115.0,61114.0,19.6581176]
[1724135590801,1.57100764,61115.0,61114.0,19.6581176]
[1724135591004,1.52163786,61115.0,61114.0,19.6581176]
[1724135591499,1.52163786,61115.0,61114.0,19.6591176]
[1724135592699,1.12163786,61115.0,61114.0,19.6591176]
[1724135592899,0.63075786,61115.0,61114.0,19.6591176]
[1724135593104,0.63375786,61115.0,61114.0,19.6691176]
[1724135593409,0.52065786,61115.0,61114.0,19.6691176]
[1724135593995,0.52066357,61115.0,61114.0,19.6691176]
[1724135595302,1.06662331,61115.0,61114.0,19.7508786]
[1724135595500,1.17972331,61115.0,61114.0,19.7508786]
[1724135596402,0.68884331,61115.0,61114.0,19.7508786]
[1724135596607,1.17972331,61115.0,61114.0,19.7508786]
[1724135598502,0.68884331,61115.0,61114.0,19.7508786]
[1724135599198,0.60726,61115.0,61114.0,19.7508786]
[1724135599405,0.63376359,61115.0,61114.0,19.7508786]
[1724135599608,1.12464359,61115.0,61114.0,19.7508786]
[1724135599802,0.63376359,61115.0,61114.0,19.7508786]
[1724135600306,1.1796971,61115.0,61114.0,19.7508786]
[1724135600708,0.6888171,61115.0,61114.0,19.7508786]
[1724135601004,0.6888171,61115.0,61114.0,19.6691176]
[1724135601204,0.63376364,61115.0,61114.0,19.65864554]
[1724135603298,0.63376547,61115.0,61114.0,19.65864554]
[1724135603904,0.71552547,61115.0,61114.0,19.65864554]
[1724135607412,1.77640547,61115.0,61114.0,19.65864554]
[1724135607611,1.37640547,61115.0,61114.0,19.65864554]
[1724135608613,1.77640547,61115.0,61114.0,19.65864554]
[1724135608815,1.60640547,61115.0,61114.0,19.65864554]
[1724135609906,1.20640547,61115.0,61114.0,19.65864554]
[1724135610316,1.68816547,61115.0,61114.0,19.65864554]
[1724135611314,1.83816547,61115.0,61114.0,19.65864554]
[1724135611620,2.19896547,61115.0,61114.0,19.65864554]
[1724135613720,1.47736547,61115.0,61114.0,19.65864554]
[1724135614015,2.19896547,61115.0,61114.0,19.65864554]
[1724135614221,1.79896547,61115.0,61114.0,19.65864554]
[1724135614609,2.19896547,61115.0,61114.0,19.65864554]
[1724135614815,1.79896547,61115.0,61114.0,19.65864554]
[1724135615218,1.89677914,61115.0,61114.0,19.65864554]
[1724135615615,2.29677914,61115.0,61114.0,19.65864554]
[1724135615908,1.89677914,61115.0,61114.0,19.65864554]
[1724135616112,1.79896547,61115.0,61114.0,19.65864554]
[1724135617014,1.25948547,61115.0,61114.0,19.65864554]
[1724135617213,1.35729914,61115.0,61114.0,19.65864554]
[1724135617721,1.25948547,61115.0,61114.0,19.65864554]
[1724135617919,1.06462547,61115.0,61114.0,19.65864554]
[1724135618118,1.02772547,61115.0,61114.0,19.74040654]
[1724135619009,0.94596547,61115.0,61114.0,19.74040654]
[1724135619218,1.01592052,61115.0,61114.0,19.74040654]
[1724135619509,1.01592002,61115.0,61114.0,19.74040654]
[1724135620214,0.94596547,61115.0,61114.0,19.74040654]
[1724135620419,1.0439095,61115.0,61114.0,19.74040654]
[1724135622017,1.0439095,61115.0,61114.0,19.65864554]
[1724135623019,0.94596547,61115.0,61114.0,19.65864554]
[1724135624114,0.58516547,61115.0,61114.0,19.65864554]
[1724135624322,0.58516547,61115.0,61114.0,19.85350654]
[1724135624323,0.003,61115.0,61114.0,19.85350654]
[1724135625224,0.003,61115.0,61114.0,19.74040654]
[1724135625526,0.084647,61115.0,61114.0,19.86382308]
[1724135625918,0.084647,61115.0,61114.0,19.75072308]
[1724135627021,0.084647,61115.0,61114.0,19.86382308]
[1724135628522,0.084647,61115.0,61114.0,19.75072308]
[1724135628724,0.02950281,61115.0,61114.0,19.74040654]
[1724135629223,0.12748323,61115.0,61114.0,19.74040654]
[1724135630322,0.11126432,61115.0,61114.0,19.65864554]
[1724135631328,0.12145971,61115.0,61114.0,19.65864554]
[1724135633023,0.69409871,61115.0,61114.0,19.65864554]
[1724135633328,0.12145971,61115.0,61114.0,19.65864554]
[1724135634827,0.09495439,61115.0,61114.0,19.65864554]
[1724135635033,0.12146075,61115.0,61114.0,19.65864554]
[1724135635224,0.21941634,61115.0,61114.0,19.65864554]
[1724135635431,0.20321975,61115.0,61114.0,19.65864554]
[1724135635626,1.32585875,61115.0,61114.0,19.65864554]
[1724135635831,1.50953761,61115.0,61114.0,19.60956155]
[1724135636029,1.39544516,61115.0,61114.0,19.60956155]
[1724135636221,1.47868884,61115.0,61114.0,18.62749418]
[1724135636426,1.72330303,61115.0,61114.0,18.54567831]
[1724135636628,1.57609279,61115.0,61114.0,18.54567831]
[1724135636830,1.72302521,61115.0,61114.0,18.54567831]
[1724135637537,1.57609279,61115.0,61114.0,18.54567831]
[1724135638239,1.47868884,61115.0,61114.0,18.54567831]
[1724135638433,1.76148884,61115.0,61114.0,18.54567831]
[1724135638938,1.85562133,61115.0,61114.0,18.54567831]
[1724135639141,1.85562133,61115.0,61114.0,18.53585831]
[1724135639337,1.84551834,61115.0,61114.0,18.53585831]
[1724135639537,1.84548176,61115.0,61114.0,18.53585831]
[1724135640039,1.75145081,61115.0,61114.0,18.53585831]
[1724135640226,1.67222901,61115.0,61114.0,18.53585831]
[1724135641832,1.67222901,61115.0,61114.0,17.95505831]
[1724135642038,1.67222901,61115.0,61114.0,17.20145323]
[1724135642236,1.75122786,61115.0,61114.0,17.19326901]
[1724135642431,1.75951925,61115.0,61114.0,17.19326901]
[1724135643342,1.75851925,61115.0,61114.0,17.18426901]
[1724135643533,1.6795204,61115.0,61114.0,17.18426901]
[1724135643940,1.75838008,61115.0,61114.0,17.18426901]
[1724135644141,1.75638008,61115.0,61114.0,17.18426901]
[1724135644337,1.75838008,61115.0,61114.0,17.16726901]
[1724135644541,1.75838008,61115.0,61114.0,16.59546901]
[1724135644932,2.03079059,61115.0,61114.0,15.35955301]
[1724135645136,2.03079059,61115.0,61114.0,14.42356203]
[1724135645137,2.35579784,61115.0,61114.0,14.42356203]
[1724135645335,2.35579784,61115.0,61114.0,13.85503382]
[1724135645531,2.49434576,61115.0,61114.0,13.85503382]
[1724135645736,2.3639976,61115.0,61114.0,13.85503382]
[1724135646040,2.3639976,61115.0,61114.0,13.26957082]
[1724135646235,2.27203884,61115.0,61114.0,12.40657047]
[1724135646435,2.411387,61115.0,61114.0,12.40757047]
[1724135646743,2.28910933,61115.0,61114.0,12.40757047]
[1724135646945,2.28910933,61115.0,61114.0,12.40657047]
[1724135647146,2.29810933,61115.0,61114.0,12.40757047]
[1724135647338,2.29810933,61115.0,61114.0,12.24867047]
[1724135647537,2.29810933,61115.0,61114.0,11.83620147]
[1724135648047,2.29810933,61115.0,61114.0,11.41314147]
[1724135648348,2.29810933,61115.0,61114.0,11.33130504]
[1724135649647,2.29810933,61115.0,61114.0,11.30346813]
[1724135650032,2.29003884,61115.0,61114.0,10.13567813]
[1724135650236,2.42020851,61115.0,61114.0,9.87972687]
[1724135650435,2.42020851,61115.0,61114.0,9.62027387]
[1724135650636,2.4282075,61115.0,61114.0,9.62027387]
[1724135650847,2.29803783,61115.0,61114.0,9.62027387]
[1724135651244,2.29803783,61115.0,61114.0,9.56299012]
[1724135651646,2.29003884,61115.0,61114.0,9.04272612]
[1724135651944,2.29003884,61115.0,61114.0,8.86045712]
[1724135652145,2.29003884,61115.0,61114.0,8.72952265]
[1724135652146,2.38804399,61115.0,61114.0,8.72952265]
[1724135652652,2.38804399,61115.0,61114.0,8.63847265]
[1724135653038,2.91004476,61115.0,61114.0,8.45958765]
[1724135653234,2.91146541,61115.0,61114.0,8.37407865]
[1724135653446,2.74884399,61115.0,61114.0,8.08246265]
[1724135653748,2.74884399,61115.0,61114.0,7.99446218]
[1724135654049,2.74884399,61115.0,61114.0,7.81376518]
[1724135654648,2.74884399,61115.0,61114.0,7.40086518]
[1724135654950,2.74884399,61115.0,61114.0,7.31645418]
[1724135655351,2.74059487,61115.0,61114.0,7.30545418]
[1724135655555,2.65083884,61115.0,61114.0,7.30545418]
[1724135655747,2.65886045,61115.0,61114.0,7.30545418]
[1724135655945,2.65886045,61115.0,61114.0,7.30057418]
[1724135657256,2.65886045,61115.0,61114.0,7.25781418]
[1724135658145,2.65886045,61115.0,61114.0,7.25362088]
[1724135658345,2.16798045,61115.0,61114.0,7.23511088]
[1724135658545,2.48916045,61115.0,61114.0,7.23511088]
[1724135658753,2.48916045,61115.0,61114.0,7.22111088]
[1724135659357,1.88307734,61115.0,61114.0,7.22111088]
[1724135659552,2.60467734,61115.0,61114.0,7.22111088]
[1724135660149,2.474552,61115.0,61114.0,7.18435188]
[1724135660749,1.752952,61115.0,61114.0,7.18435188]
[1724135660954,2.474552,61115.0,61114.0,7.18435188]
[1724135661155,2.474552,61115.0,61114.0,7.15651229]
[1724135661454,2.474552,61115.0,61114.0,7.15184229]
[1724135661649,2.474552,61115.0,61114.0,7.11553229]
[1724135661845,2.474552,61115.0,61114.0,6.59390869]
[1724135661846,2.46653039,61115.0,61114.0,6.59390869]
[1724135662053,2.46653039,61115.0,61114.0,6.50107869]
[1724135662255,2.60472179,61115.0,61114.0,6.50107869]
[1724135662453,2.60472179,61115.0,61114.0,6.47507869]
[1724135662653,2.47459645,61115.0,61114.0,6.30586183]
[1724135662854,2.47459645,61115.0,61114.0,6.27987183]
[1724135663051,2.47459645,61115.0,61114.0,6.25388183]
[1724135663351,2.56134546,61115.0,61114.0,6.17204194]
[1724135663555,2.56134546,61115.0,61114.0,6.08958994]
[1724135663556,2.47459645,61115.0,61114.0,6.08958994]
[1724135664260,2.55969118,61115.0,61114.0,6.08958994]
[1724135664647,2.55969118,61115.0,61114.0,5.98645394]
[1724135664855,2.70650878,61115.0,61114.0,5.53365394]
[1724135665053,2.70650878,61115.0,61114.0,5.52565394]
[1724135665054,2.55162512,61115.0,61114.0,5.52565394]
[1724135665254,2.71763234,61115.0,61114.0,5.52565394]
[1724135665858,2.55501092,61115.0,61114.0,5.52565394]
[1724135666365,2.55501092,61115.0,61114.0,5.46836787]
[1724135666559,2.71763234,61115.0,61114.0,5.44126787]
[1724135666759,2.55501092,61115.0,61114.0,5.44126787]
[1724135667357,2.55501092,61115.0,61114.0,5.40524087]
[1724135667564,2.71763234,61115.0,61114.0,5.40524087]
[1724135667766,2.71763234,61115.0,61114.0,4.95244087]
[1724135668164,2.6602373,61115.0,61114.0,4.82149879]
[1724135669254,2.6602373,61115.0,61114.0,4.78570879]
[1724135669855,1.92591924,61115.0,61114.0,4.78570879]
[1724135670065,2.54229286,61115.0,61114.0,4.78570879]
[1724135670263,2.64751924,61115.0,61114.0,4.78570879]
[1724135670563,2.64751924,61115.0,61114.0,4.77270879]
[1724135670864,2.64751924,61115.0,61114.0,4.28194916]
[1724135671061,2.64751924,61115.0,61114.0,4.24486916]
[1724135671256,2.64751924,61115.0,61114.0,4.04225029]
[1724135671465,2.64751924,61115.0,61114.0,3.91775029]
[1724135671863,2.64751924,61115.0,61114.0,3.84870029]
[1724135672263,2.63951701,61115.0,61114.0,3.83170029]
[1724135672464,2.86867701,61115.0,61114.0,3.73895029]
[1724135672862,2.87695994,61115.0,61114.0,3.65133929]
[1724135673073,2.87695994,61115.0,61114.0,3.54164129]
[1724135673270,2.87695994,61115.0,61114.0,3.45587229]
[1724135673474,2.87695994,61115.0,61114.0,3.37023829]
[1724135673663,2.87695994,61115.0,61114.0,3.19998529]
[1724135675358,2.87695994,61115.0,61114.0,3.11814492]
[1724135676066,2.86867701,61115.0,61114.0,3.08914492]
[1724135676470,2.87682686,61115.0,61114.0,3.08914492]
[1724135677068,2.93513595,61115.0,61114.0,2.79805592]
[1724135677269,2.93513595,61115.0,61114.0,2.70414692]
[1724135677570,2.9269861,61115.0,61114.0,2.60039292]
[1724135677769,2.9269861,61115.0,61114.0,2.50007392]
[1724135677970,2.93517033,61115.0,61114.0,2.25019292]
[1724135678275,2.93517033,61115.0,61114.0,2.16146892]
[1724135679168,2.91750363,61115.0,61114.0,2.16146892]
[1724135679466,2.41170816,61115.0,61114.0,2.16146892]
[1724135679666,2.75400816,61115.0,61114.0,2.03467353]
[1724135679870,2.90936526,61115.0,61114.0,1.83671094]
[1724135680367,2.90936526,61115.0,61114.0,1.82782756]
[1724135680368,2.91770417,61115.0,61114.0,1.82782756]
[1724135680673,2.75416284,61115.0,61114.0,1.80732878]
[1724135680876,2.91770417,61115.0,61114.0,1.80732878]
[1724135681061,2.75416284,61115.0,61114.0,1.80732878]
[1724135681678,2.86933555,61115.0,61114.0,1.67638541]
[1724135682571,2.85134009,61115.0,61114.0,1.67638541]
[1724135683374,2.86933555,61115.0,61114.0,1.67638541]
[1724135683569,2.89404892,61115.0,61114.0,1.67638541]
[1724135683775,2.8609216,61115.0,61114.0,1.67638541]
[1724135683973,2.86092156,61115.0,61114.0,1.67638541]
[1724135684370,2.86092156,61115.0,61114.0,1.66130541]
[1724135684572,2.86092157,61115.0,61114.0,1.66130541]
[1724135684975,2.86092159,61115.0,61114.0,1.66130541]
[1724135687273,2.85258268,61115.0,61114.0,1.5123877]
[1724135687478,2.36170268,61115.0,61114.0,1.5123877]
[1724135687674,2.36976908,61115.0,61114.0,1.5123877]
[1724135688285,2.36470739,61115.0,61114.0,1.5123877]
[1724135689281,2.36470739,61115.0,61114.0,1.4771777]
[1724135689780,2.36472411,61115.0,61114.0,1.4317781]
[1724135690698,2.36472411,61115.0,61114.0,1.4075581]
[1724135690809,2.34672866,61115.0,61114.0,1.4075581]
[1724135691786,2.34672866,61115.0,61114.0,1.27661712]
[1724135692786,2.15631604,61115.0,61114.0,1.27661712]
[1724135692991,2.24088133,61115.0,61114.0,1.27661712]
[1724135693195,2.33805858,61115.0,61114.0,1.27661712]
[1724135693593,2.33805858,61115.0,61114.0,1.23989712]
[1724135694803,2.82087218,61115.0,61114.0,1.15565626]
[1724135694995,3.02534377,61115.0,61114.0,0.92691218]
[1724135695196,3.01565384,61115.0,61114.0,0.89095218]
[1724135695500,3.00734842,61115.0,61114.0,0.74456218]
[1724135695788,3.01568494,61115.0,61114.0,0.74456218]
[1724135697380,3.0336803,61115.0,61114.0,0.74456218]
[1724135697575,3.02371858,61115.0,61114.0,0.74456218]
[1724135697883,3.02371858,61115.0,61114.0,0.70057218]
[1724135699285,3.02371858,61115.0,61114.0,0.63051497]
[1724135700379,3.03906326,61115.0,61114.0,0.63051497]
[1724135700687,3.03906326,61115.0,61114.0,0.61151497]
[1724135701190,3.03616827,61115.0,61114.0,0.61151497]
[1724135702282,2.31456827,61115.0,61114.0,0.61151497]
[1724135702481,3.03616827,61115.0,61114.0,0.61151497]
[1724135702683,3.03616827,61115.0,61114.0,0.60351497]
[1724135702684,3.02783175,61115.0,61114.0,0.60351497]
[1724135703379,3.02064109,61115.0,61114.0,0.60351497]
[1724135703881,3.10240009,61115.0,61114.0,0.4082905]
[1724135704083,3.10240009,61115.0,61114.0,0.1412405]
[1724135704285,3.10240009,61115.0,61114.0,0.0537435]
[1724135704286,3.02064109,61115.0,61114.0,0.0537435]
[1724135704481,2.52976109,61115.0,61114.0,0.0537435]
[1724135704681,2.52976109,61115.0,61095.0,0.0477]
[1724135704682,0.245355,61096.0,61095.0,0.0407]
[1724135704878,1.46179776,61096.0,61095.0,0.53158]
[1724135705088,1.40894083,61096.0,61095.0,0.4460767]
[1724135705588,1.40577586,61096.0,61095.0,0.4460767]
[1724135706981,1.40677586,61096.0,61095.0,0.4480767]
[1724135707185,1.63597586,61096.0,61095.0,0.4480767]
[1724135707382,1.81575941,61096.0,61095.0,0.4480767]
[1724135707783,1.82375941,61096.0,61095.0,0.4480767]
[1724135707983,1.64397586,61096.0,61095.0,0.4480767]
[1724135708182,1.82375941,61096.0,61095.0,0.4480767]
[1724135708385,1.64397586,61096.0,61095.0,0.4480767]
[1724135708792,1.82375941,61096.0,61095.0,0.36674311]
[1724135708991,1.83187568,61096.0,61095.0,0.26634556]
[1724135709291,1.81548926,61096.0,61095.0,0.23145556]
[1724135709492,1.66257933,61096.0,61095.0,0.23145556]
[1724135710382,1.66157933,61096.0,61095.0,0.23145556]
[1724135710986,1.66557933,61096.0,61095.0,0.23145556]
[1724135711579,1.84517708,61096.0,61095.0,0.23145556]
[1724135711787,1.66557933,61096.0,61095.0,0.23145556]
[1724135712181,1.82882822,61096.0,61095.0,0.19307556]
[1724135712987,1.82071195,61096.0,61095.0,0.16297556]
[1724135713186,1.72563315,61096.0,61095.0,0.16297556]
[1724135713388,1.73392613,61096.0,61095.0,0.16297556]
[1724135713792,1.73392613,61096.0,61095.0,0.12027556]
[1724135713992,1.72563315,61096.0,61095.0,0.09897556]
[1724135714194,1.88933315,61096.0,61095.0,0.07112421]
[1724135714697,1.88933315,61096.0,61095.0,0.06312421]
[1724135714899,1.89745914,61096.0,61095.0,0.04512421]
[1724135715191,1.88933315,61096.0,61095.0,0.01212421]
[1724135715398,1.76675835,61096.0,61095.0,0.01212421]
[1724135715789,1.75875433,61096.0,61095.0,0.002]
[1724135716096,1.81897892,61096.0,61095.0,0.002]
[1724135716293,1.81897892,61096.0,61089.0,1.65214554]
[1724135716294,0.081793,61090.0,61089.0,1.60155694]
[1724135716489,0.76206464,61090.0,61089.0,1.4764027]
[1724135716687,0.80725227,61090.0,61089.0,1.4764027]
[1724135716890,0.97083827,61090.0,61089.0,1.4764027]
[1724135717199,0.97083827,61090.0,61089.0,1.4574027]
[1724135717589,0.96259113,61090.0,61089.0,1.3516127]
[1724135717894,1.45367113,61090.0,61089.0,1.3326127]
[1724135718090,1.59236572,61090.0,61089.0,1.3326127]
[1724135718291,1.60536572,61090.0,61089.0,1.3274627]
[1724135718490,1.10608361,61090.0,61089.0,1.30446271]
[1724135718691,1.2779669,61090.0,61089.0,0.88478871]
[1724135718896,1.2779669,61090.0,61089.0,0.21867824]
[1724135718897,1.63855442,61090.0,61089.0,0.21867824]
[1724135719092,1.63855442,61090.0,61089.0,0.01440224]
[1724135719093,1.76901461,61090.0,61089.0,0.01440224]
[1724135719290,1.63855442,61090.0,61089.0,4.6e-07]
[1724135719685,0.1131,61067.0,61063.0,0.0925]
[1724135719897,0.44233801,61065.0,61063.0,0.0925]
[1724135720098,0.5108,61065.0,61064.0,0.49128]
[1724135720393,0.5108,61065.0,61064.0,0.89128]
[1724135721091,0.5118,61065.0,61064.0,0.89128]
[1724135721289,0.6249,61065.0,61064.0,0.89128]
[1724135721888,0.6259,61065.0,61064.0,0.89128]
[1724135722091,0.6259,61065.0,61063.0,0.0925]
[1724135722300,0.02653141,61064.0,61063.0,0.0925]
[1724135722490,0.60915941,61064.0,61063.0,0.0925]
[1724135722799,0.70700503,61064.0,61063.0,0.0925]
[1724135723098,0.70692938,61064.0,61063.0,0.0925]
[1724135723491,0.60916252,61064.0,61063.0,0.0925]
[1724135724697,0.081845,61051.0,61037.0,0.1131]
[1724135724892,0.3608,61038.0,61037.0,0.1131]
[1724135725096,0.40962061,61038.0,61037.0,0.1131]
[1724135725297,0.3608,61038.0,61037.0,0.89152]
[1724135725598,0.50096863,61038.0,61037.0,0.89152]
[1724135725802,0.61406863,61038.0,61037.0,0.89152]
[1724135726296,0.61406863,61038.0,61037.0,0.49152]
[1724135726793,0.61406863,61038.0,61037.0,1.00462]
[1724135726794,0.36196863,61038.0,61037.0,1.00462]
[1724135727300,0.36196863,61038.0,61037.0,0.89152]
[1724135727600,0.36196863,61038.0,61037.0,1.00462]
[1724135727988,0.36296863,61038.0,61037.0,1.00462]
[1724135728398,0.36596863,61038.0,61037.0,1.00462]
[1724135728991,0.36196863,61038.0,61037.0,1.00462]
[1724135730901,0.36196863,61038.0,61037.0,0.89152]
[1724135731097,0.52196863,61038.0,61037.0,0.89152]
[1724135731610,0.52196863,61038.0,61037.0,0.49152]
[1724135732001,0.52196863,61038.0,61037.0,0.89152]
[1724135732195,0.52596863,61038.0,61037.0,0.89152]
[1724135733610,0.52496863,61038.0,61037.0,0.89152]
[1724135733900,0.52596863,61038.0,61037.0,0.89152]
[1724135735399,0.24703163,61038.0,61037.0,0.49152]
[1724135735603,0.60783163,61038.0,61037.0,0.49152]
[1724135735898,0.60783163,61038.0,61037.0,0.89152]
[1724135736610,0.52596863,61038.0,61037.0,0.89152]